Workbook

Sheet 1
A1: 修文县2023年公开招聘社区工作者笔试成绩
A2: 序号 | B2: 准考证号 | C2: 姓名 | D2: 缺考 | E2: 笔试成绩 | F2: 招聘单位 | G2: 招聘单位代码 | H2: 招聘岗位 | I2: 招聘岗位代码 | J2: 排名
A3: 1 | B3: 2023030100130 | C3: 曹雨嫣 | D3: N | E3: 98.5 | F3: 修文县景阳街道景阳社区 | G3: 20230301 | H3: 公共事务员 | I3: 2023030101 | J3: =SUMPRODUCT(($F$3:$F$1200=F3)*($E$3:$E$1200>E3))+1 -> 1
A4: 2 | B4: 2023030100113 | C4: 陈国斌 | D4: N | E4: 88.5 | F4: 修文县景阳街道景阳社区 | G4: 20230301 | H4: 公共事务员 | I4: 2023030101 | J4: =SUMPRODUCT(($F$3:$F$1200=F4)*($E$3:$E$1200>E4))+1 -> 2
A5: 3 | B5: 2023030100123 | C5: 潘明顺 | D5: N | E5: 79 | F5: 修文县景阳街道景阳社区 | G5: 20230301 | H5: 公共事务员 | I5: 2023030101 | J5: =SUMPRODUCT(($F$3:$F$1200=F5)*($E$3:$E$1200>E5))+1 -> 3
A6: 4 | B6: 2023030100124 | C6: 吴静 | D6: N | E6: 77.5 | F6: 修文县景阳街道景阳社区 | G6: 20230301 | H6: 公共事务员 | I6: 2023030101 | J6: =SUMPRODUCT(($F$3:$F$1200=F6)*($E$3:$E$1200>E6))+1 -> 4
A7: 5 | B7: 2023030100128 | C7: 刘晓琴 | D7: N | E7: 77.5 | F7: 修文县景阳街道景阳社区 | G7: 20230301 | H7: 公共事务员 | I7: 2023030101 | J7: =SUMPRODUCT(($F$3:$F$1200=F7)*($E$3:$E$1200>E7))+1 -> 4
A8: 6 | B8: 2023030100104 | C8: 黄易 | D8: N | E8: 77 | F8: 修文县景阳街道景阳社区 | G8: 20230301 | H8: 公共事务员 | I8: 2023030101 | J8: =SUMPRODUCT(($F$3:$F$1200=F8)*($E$3:$E$1200>E8))+1 -> 6
A9: 7 | B9: 2023030100129 | C9: 袁书 | D9: N | E9: 76.5 | F9: 修文县景阳街道景阳社区 | G9: 20230301 | H9: 公共事务员 | I9: 2023030101 | J9: =SUMPRODUCT(($F$3:$F$1200=F9)*($E$3:$E$1200>E9))+1 -> 7
A10: 8 | B10: 2023030100122 | C10: 曾秀义 | D10: N | E10: 76.5 | F10: 修文县景阳街道景阳社区 | G10: 20230301 | H10: 公共事务员 | I10: 2023030101 | J10: =SUMPRODUCT(($F$3:$F$1200=F10)*($E$3:$E$1200>E10))+1 -> 7
A11: 9 | B11: 2023030100112 | C11: 冉旭 | D11: N | E11: 74 | F11: 修文县景阳街道景阳社区 | G11: 20230301 | H11: 公共事务员 | I11: 2023030101 | J11: =SUMPRODUCT(($F$3:$F$1200=F11)*($E$3:$E$1200>E11))+1 -> 9
A12: 10 | B12: 2023030100117 | C12: 石明秀 | D12: N | E12: 69 | F12: 修文县景阳街道景阳社区 | G12: 20230301 | H12: 公共事务员 | I12: 2023030101 | J12: =SUMPRODUCT(($F$3:$F$1200=F12)*($E$3:$E$1200>E12))+1 -> 10
A13: 11 | B13: 2023030100119 | C13: 覃宗缘 | D13: N | E13: 68.5 | F13: 修文县景阳街道景阳社区 | G13: 20230301 | H13: 公共事务员 | I13: 2023030101 | J13: =SUMPRODUCT(($F$3:$F$1200=F13)*($E$3:$E$1200>E13))+1 -> 11
A14: 12 | B14: 2023030100108 | C14: 马亚娥 | D14: N | E14: 66 | F14: 修文县景阳街道景阳社区 | G14: 20230301 | H14: 公共事务员 | I14: 2023030101 | J14: =SUMPRODUCT(($F$3:$F$1200=F14)*($E$3:$E$1200>E14))+1 -> 12
A15: 13 | B15: 2023030100206 | C15: 胡恋恋 | D15: N | E15: 64 | F15: 修文县景阳街道景阳社区 | G15: 20230301 | H15: 公共事务员 | I15: 2023030101 | J15: =SUMPRODUCT(($F$3:$F$1200=F15)*($E$3:$E$1200>E15))+1 -> 13
A16: 14 | B16: 2023030100205 | C16: 张晨 | D16: N | E16: 60.5 | F16: 修文县景阳街道景阳社区 | G16: 20230301 | H16: 公共事务员 | I16: 2023030101 | J16: =SUMPRODUCT(($F$3:$F$1200=F16)*($E$3:$E$1200>E16))+1 -> 14
A17: 15 | B17: 2023030100121 | C17: 陈镕一 | D17: Y | E17: 0 | F17: 修文县景阳街道景阳社区 | G17: 20230301 | H17: 公共事务员 | I17: 2023030101 | J17: =SUMPRODUCT(($F$3:$F$1200=F17)*($E$3:$E$1200>E17))+1 -> 15
A18: 16 | B18: 2023030100126 | C18: 张亮 | D18: Y | E18: 0 | F18: 修文县景阳街道景阳社区 | G18: 20230301 | H18: 公共事务员 | I18: 2023030101 | J18: =SUMPRODUCT(($F$3:$F$1200=F18)*($E$3:$E$1200>E18))+1 -> 15
A19: 17 | B19: 2023030100110 | C19: 许良雄 | D19: Y | E19: 0 | F19: 修文县景阳街道景阳社区 | G19: 20230301 | H19: 公共事务员 | I19: 2023030101 | J19: =SUMPRODUCT(($F$3:$F$1200=F19)*($E$3:$E$1200>E19))+1 -> 15
A20: 18 | B20: 2023030100116 | C20: 田慧琴 | D20: Y | E20: 0 | F20: 修文县景阳街道景阳社区 | G20: 20230301 | H20: 公共事务员 | I20: 2023030101 | J20: =SUMPRODUCT(($F$3:$F$1200=F20)*($E$3:$E$1200>E20))+1 -> 15
A21: 19 | B21: 2023030100118 | C21: 韦国勇 | D21: Y | E21: 0 | F21: 修文县景阳街道景阳社区 | G21: 20230301 | H21: 公共事务员 | I21: 2023030101 | J21: =SUMPRODUCT(($F$3:$F$1200=F21)*($E$3:$E$1200>E21))+1 -> 15
A22: 20 | B22: 2023030100127 | C22: 冉红雪 | D22: Y | E22: 0 | F22: 修文县景阳街道景阳社区 | G22: 20230301 | H22: 公共事务员 | I22: 2023030101 | J22: =SUMPRODUCT(($F$3:$F$1200=F22)*($E$3:$E$1200>E22))+1 -> 15
A23: 21 | B23: 2023030100101 | C23: 吴海星 | D23: Y | E23: 0 | F23: 修文县景阳街道景阳社区 | G23: 20230301 | H23: 公共事务员 | I23: 2023030101 | J23: =SUMPRODUCT(($F$3:$F$1200=F23)*($E$3:$E$1200>E23))+1 -> 15
A24: 22 | B24: 2023030100201 | C24: 李锦慧 | D24: Y | E24: 0 | F24: 修文县景阳街道景阳社区 | G24: 20230301 | H24: 公共事务员 | I24: 2023030101 | J24: =SUMPRODUCT(($F$3:$F$1200=F24)*($E$3:$E$1200>E24))+1 -> 15
A25: 23 | B25: 2023030100202 | C25: 刘守归 | D25: Y | E25: 0 | F25: 修文县景阳街道景阳社区 | G25: 20230301 | H25: 公共事务员 | I25: 2023030101 | J25: =SUMPRODUCT(($F$3:$F$1200=F25)*($E$3:$E$1200>E25))+1 -> 15
A26: 24 | B26: 2023030100203 | C26: 熊兴花 | D26: Y | E26: 0 | F26: 修文县景阳街道景阳社区 | G26: 20230301 | H26: 公共事务员 | I26: 2023030101 | J26: =SUMPRODUCT(($F$3:$F$1200=F26)*($E$3:$E$1200>E26))+1 -> 15
A27: 25 | B27: 2023030100106 | C27: 石贵 | D27: Y | E27: 0 | F27: 修文县景阳街道景阳社区 | G27: 20230301 | H27: 公共事务员 | I27: 2023030101 | J27: =SUMPRODUCT(($F$3:$F$1200=F27)*($E$3:$E$1200>E27))+1 -> 15
A28: 26 | B28: 2023030100125 | C28: 吴俊泽 | D28: Y | E28: 0 | F28: 修文县景阳街道景阳社区 | G28: 20230301 | H28: 公共事务员 | I28: 2023030101 | J28: =SUMPRODUCT(($F$3:$F$1200=F28)*($E$3:$E$1200>E28))+1 -> 15
A29: 27 | B29: 2023030100102 | C29: 田光省 | D29: Y | E29: 0 | F29: 修文县景阳街道景阳社区 | G29: 20230301 | H29: 公共事务员 | I29: 2023030101 | J29: =SUMPRODUCT(($F$3:$F$1200=F29)*($E$3:$E$1200>E29))+1 -> 15
A30: 28 | B30: 2023030100105 | C30: 胡大维 | D30: Y | E30: 0 | F30: 修文县景阳街道景阳社区 | G30: 20230301 | H30: 公共事务员 | I30: 2023030101 | J30: =SUMPRODUCT(($F$3:$F$1200=F30)*($E$3:$E$1200>E30))+1 -> 15
A31: 29 | B31: 2023030100103 | C31: 邹鑫 | D31: Y | E31: 0 | F31: 修文县景阳街道景阳社区 | G31: 20230301 | H31: 公共事务员 | I31: 2023030101 | J31: =SUMPRODUCT(($F$3:$F$1200=F31)*($E$3:$E$1200>E31))+1 -> 15
A32: 30 | B32: 2023030100107 | C32: 吴兰英 | D32: Y | E32: 0 | F32: 修文县景阳街道景阳社区 | G32: 20230301 | H32: 公共事务员 | I32: 2023030101 | J32: =SUMPRODUCT(($F$3:$F$1200=F32)*($E$3:$E$1200>E32))+1 -> 15
A33: 31 | B33: 2023030100114 | C33: 李鑫 | D33: Y | E33: 0 | F33: 修文县景阳街道景阳社区 | G33: 20230301 | H33: 公共事务员 | I33: 2023030101 | J33: =SUMPRODUCT(($F$3:$F$1200=F33)*($E$3:$E$1200>E33))+1 -> 15
A34: 32 | B34: 2023030100120 | C34: 罗吉林 | D34: Y | E34: 0 | F34: 修文县景阳街道景阳社区 | G34: 20230301 | H34: 公共事务员 | I34: 2023030101 | J34: =SUMPRODUCT(($F$3:$F$1200=F34)*($E$3:$E$1200>E34))+1 -> 15
A35: 33 | B35: 2023030100109 | C35: 张云风 | D35: Y | E35: 0 | F35: 修文县景阳街道景阳社区 | G35: 20230301 | H35: 公共事务员 | I35: 2023030101 | J35: =SUMPRODUCT(($F$3:$F$1200=F35)*($E$3:$E$1200>E35))+1 -> 15
A36: 34 | B36: 2023030100115 | C36: 张仙美 | D36: Y | E36: 0 | F36: 修文县景阳街道景阳社区 | G36: 20230301 | H36: 公共事务员 | I36: 2023030101 | J36: =SUMPRODUCT(($F$3:$F$1200=F36)*($E$3:$E$1200>E36))+1 -> 15
A37: 35 | B37: 2023030100204 | C37: 张候选 | D37: Y | E37: 0 | F37: 修文县景阳街道景阳社区 | G37: 20230301 | H37: 公共事务员 | I37: 2023030101 | J37: =SUMPRODUCT(($F$3:$F$1200=F37)*($E$3:$E$1200>E37))+1 -> 15
A38: 36 | B38: 2023030100606 | C38: 聂培敏 | D38: N | E38: 106.5 | F38: 修文县景阳街道襄阳社区 | G38: 20230302 | H38: 公共事务员 | I38: 2023030201 | J38: =SUMPRODUCT(($F$3:$F$1200=F38)*($E$3:$E$1200>E38))+1 -> 1
A39: 37 | B39: 2023030100428 | C39: 姚涛 | D39: N | E39: 102.5 | F39: 修文县景阳街道襄阳社区 | G39: 20230302 | H39: 公共事务员 | I39: 2023030201 | J39: =SUMPRODUCT(($F$3:$F$1200=F39)*($E$3:$E$1200>E39))+1 -> 2
A40: 38 | B40: 2023030100302 | C40: 冯健鹏 | D40: N | E40: 98.5 | F40: 修文县景阳街道襄阳社区 | G40: 20230302 | H40: 公共事务员 | I40: 2023030201 | J40: =SUMPRODUCT(($F$3:$F$1200=F40)*($E$3:$E$1200>E40))+1 -> 3
A41: 39 | B41: 2023030100524 | C41: 徐颖 | D41: N | E41: 97.5 | F41: 修文县景阳街道襄阳社区 | G41: 20230302 | H41: 公共事务员 | I41: 2023030201 | J41: =SUMPRODUCT(($F$3:$F$1200=F41)*($E$3:$E$1200>E41))+1 -> 4
A42: 40 | B42: 2023030100409 | C42: 胡静 | D42: N | E42: 97 | F42: 修文县景阳街道襄阳社区 | G42: 20230302 | H42: 公共事务员 | I42: 2023030201 | J42: =SUMPRODUCT(($F$3:$F$1200=F42)*($E$3:$E$1200>E42))+1 -> 5
A43: 41 | B43: 2023030100603 | C43: 敖洪娅 | D43: N | E43: 95 | F43: 修文县景阳街道襄阳社区 | G43: 20230302 | H43: 公共事务员 | I43: 2023030201 | J43: =SUMPRODUCT(($F$3:$F$1200=F43)*($E$3:$E$1200>E43))+1 -> 6
A44: 42 | B44: 2023030101108 | C44: 杨林勇 | D44: N | E44: 94.5 | F44: 修文县景阳街道襄阳社区 | G44: 20230302 | H44: 公共事务员 | I44: 2023030201 | J44: =SUMPRODUCT(($F$3:$F$1200=F44)*($E$3:$E$1200>E44))+1 -> 7
A45: 43 | B45: 2023030101017 | C45: 姚崔灿 | D45: N | E45: 93.5 | F45: 修文县景阳街道襄阳社区 | G45: 20230302 | H45: 公共事务员 | I45: 2023030201 | J45: =SUMPRODUCT(($F$3:$F$1200=F45)*($E$3:$E$1200>E45))+1 -> 8
A46: 44 | B46: 2023030100812 | C46: 李若梅 | D46: N | E46: 92.5 | F46: 修文县景阳街道襄阳社区 | G46: 20230302 | H46: 公共事务员 | I46: 2023030201 | J46: =SUMPRODUCT(($F$3:$F$1200=F46)*($E$3:$E$1200>E46))+1 -> 9
A47: 45 | B47: 2023030100921 | C47: 雷文蕊 | D47: N | E47: 92.5 | F47: 修文县景阳街道襄阳社区 | G47: 20230302 | H47: 公共事务员 | I47: 2023030201 | J47: =SUMPRODUCT(($F$3:$F$1200=F47)*($E$3:$E$1200>E47))+1 -> 9
A48: 46 | B48: 2023030100621 | C48: 杨正波 | D48: N | E48: 92 | F48: 修文县景阳街道襄阳社区 | G48: 20230302 | H48: 公共事务员 | I48: 2023030201 | J48: =SUMPRODUCT(($F$3:$F$1200=F48)*($E$3:$E$1200>E48))+1 -> 11
A49: 47 | B49: 2023030100414 | C49: 梅嫒 | D49: N | E49: 92 | F49: 修文县景阳街道襄阳社区 | G49: 20230302 | H49: 公共事务员 | I49: 2023030201 | J49: =SUMPRODUCT(($F$3:$F$1200=F49)*($E$3:$E$1200>E49))+1 -> 11
A50: 48 | B50: 2023030101009 | C50: 陆治任 | D50: N | E50: 91.5 | F50: 修文县景阳街道襄阳社区 | G50: 20230302 | H50: 公共事务员 | I50: 2023030201 | J50: =SUMPRODUCT(($F$3:$F$1200=F50)*($E$3:$E$1200>E50))+1 -> 13
A51: 49 | B51: 2023030100907 | C51: 徐滨洪 | D51: N | E51: 91 | F51: 修文县景阳街道襄阳社区 | G51: 20230302 | H51: 公共事务员 | I51: 2023030201 | J51: =SUMPRODUCT(($F$3:$F$1200=F51)*($E$3:$E$1200>E51))+1 -> 14
A52: 50 | B52: 2023030100808 | C52: 王莉灵 | D52: N | E52: 91 | F52: 修文县景阳街道襄阳社区 | G52: 20230302 | H52: 公共事务员 | I52: 2023030201 | J52: =SUMPRODUCT(($F$3:$F$1200=F52)*($E$3:$E$1200>E52))+1 -> 14
A53: 51 | B53: 2023030100406 | C53: 王庆兰 | D53: N | E53: 89 | F53: 修文县景阳街道襄阳社区 | G53: 20230302 | H53: 公共事务员 | I53: 2023030201 | J53: =SUMPRODUCT(($F$3:$F$1200=F53)*($E$3:$E$1200>E53))+1 -> 16
A54: 52 | B54: 2023030100314 | C54: 周兰 | D54: N | E54: 87 | F54: 修文县景阳街道襄阳社区 | G54: 20230302 | H54: 公共事务员 | I54: 2023030201 | J54: =SUMPRODUCT(($F$3:$F$1200=F54)*($E$3:$E$1200>E54))+1 -> 17
A55: 53 | B55: 2023030100819 | C55: 秦颖 | D55: N | E55: 86 | F55: 修文县景阳街道襄阳社区 | G55: 20230302 | H55: 公共事务员 | I55: 2023030201 | J55: =SUMPRODUCT(($F$3:$F$1200=F55)*($E$3:$E$1200>E55))+1 -> 18
A56: 54 | B56: 2023030100806 | C56: 刘艳情 | D56: N | E56: 85.5 | F56: 修文县景阳街道襄阳社区 | G56: 20230302 | H56: 公共事务员 | I56: 2023030201 | J56: =SUMPRODUCT(($F$3:$F$1200=F56)*($E$3:$E$1200>E56))+1 -> 19
A57: 55 | B57: 2023030100321 | C57: 龚曼 | D57: N | E57: 84.5 | F57: 修文县景阳街道襄阳社区 | G57: 20230302 | H57: 公共事务员 | I57: 2023030201 | J57: =SUMPRODUCT(($F$3:$F$1200=F57)*($E$3:$E$1200>E57))+1 -> 20
A58: 56 | B58: 2023030101020 | C58: 李昊 | D58: N | E58: 84.5 | F58: 修文县景阳街道襄阳社区 | G58: 20230302 | H58: 公共事务员 | I58: 2023030201 | J58: =SUMPRODUCT(($F$3:$F$1200=F58)*($E$3:$E$1200>E58))+1 -> 20
A59: 57 | B59: 2023030101106 | C59: 刘丽 | D59: N | E59: 84 | F59: 修文县景阳街道襄阳社区 | G59: 20230302 | H59: 公共事务员 | I59: 2023030201 | J59: =SUMPRODUCT(($F$3:$F$1200=F59)*($E$3:$E$1200>E59))+1 -> 22
A60: 58 | B60: 2023030101006 | C60: 刘军义 | D60: N | E60: 84 | F60: 修文县景阳街道襄阳社区 | G60: 20230302 | H60: 公共事务员 | I60: 2023030201 | J60: =SUMPRODUCT(($F$3:$F$1200=F60)*($E$3:$E$1200>E60))+1 -> 22
A61: 59 | B61: 2023030100927 | C61: 陈晓静 | D61: N | E61: 83.5 | F61: 修文县景阳街道襄阳社区 | G61: 20230302 | H61: 公共事务员 | I61: 2023030201 | J61: =SUMPRODUCT(($F$3:$F$1200=F61)*($E$3:$E$1200>E61))+1 -> 24
A62: 60 | B62: 2023030100424 | C62: 罗小兰 | D62: N | E62: 83.5 | F62: 修文县景阳街道襄阳社区 | G62: 20230302 | H62: 公共事务员 | I62: 2023030201 | J62: =SUMPRODUCT(($F$3:$F$1200=F62)*($E$3:$E$1200>E62))+1 -> 24
A63: 61 | B63: 2023030100629 | C63: 韩英 | D63: N | E63: 83 | F63: 修文县景阳街道襄阳社区 | G63: 20230302 | H63: 公共事务员 | I63: 2023030201 | J63: =SUMPRODUCT(($F$3:$F$1200=F63)*($E$3:$E$1200>E63))+1 -> 26
A64: 62 | B64: 2023030100310 | C64: 毛慧敏 | D64: N | E64: 83 | F64: 修文县景阳街道襄阳社区 | G64: 20230302 | H64: 公共事务员 | I64: 2023030201 | J64: =SUMPRODUCT(($F$3:$F$1200=F64)*($E$3:$E$1200>E64))+1 -> 26
A65: 63 | B65: 2023030101114 | C65: 李丽 | D65: N | E65: 83 | F65: 修文县景阳街道襄阳社区 | G65: 20230302 | H65: 公共事务员 | I65: 2023030201 | J65: =SUMPRODUCT(($F$3:$F$1200=F65)*($E$3:$E$1200>E65))+1 -> 26
A66: 64 | B66: 2023030100505 | C66: 卢勇 | D66: N | E66: 83 | F66: 修文县景阳街道襄阳社区 | G66: 20230302 | H66: 公共事务员 | I66: 2023030201 | J66: =SUMPRODUCT(($F$3:$F$1200=F66)*($E$3:$E$1200>E66))+1 -> 26
A67: 65 | B67: 2023030100618 | C67: 付贞义 | D67: N | E67: 82.5 | F67: 修文县景阳街道襄阳社区 | G67: 20230302 | H67: 公共事务员 | I67: 2023030201 | J67: =SUMPRODUCT(($F$3:$F$1200=F67)*($E$3:$E$1200>E67))+1 -> 30
A68: 66 | B68: 2023030100810 | C68: 罗群 | D68: N | E68: 82.5 | F68: 修文县景阳街道襄阳社区 | G68: 20230302 | H68: 公共事务员 | I68: 2023030201 | J68: =SUMPRODUCT(($F$3:$F$1200=F68)*($E$3:$E$1200>E68))+1 -> 30
A69: 67 | B69: 2023030101023 | C69: 秦祥 | D69: N | E69: 82 | F69: 修文县景阳街道襄阳社区 | G69: 20230302 | H69: 公共事务员 | I69: 2023030201 | J69: =SUMPRODUCT(($F$3:$F$1200=F69)*($E$3:$E$1200>E69))+1 -> 32
A70: 68 | B70: 2023030100212 | C70: 常萍 | D70: N | E70: 82 | F70: 修文县景阳街道襄阳社区 | G70: 20230302 | H70: 公共事务员 | I70: 2023030201 | J70: =SUMPRODUCT(($F$3:$F$1200=F70)*($E$3:$E$1200>E70))+1 -> 32
A71: 69 | B71: 2023030101314 | C71: 陈世林 | D71: N | E71: 81.5 | F71: 修文县景阳街道襄阳社区 | G71: 20230302 | H71: 公共事务员 | I71: 2023030201 | J71: =SUMPRODUCT(($F$3:$F$1200=F71)*($E$3:$E$1200>E71))+1 -> 34
A72: 70 | B72: 2023030101016 | C72: 杨锐 | D72: N | E72: 81.5 | F72: 修文县景阳街道襄阳社区 | G72: 20230302 | H72: 公共事务员 | I72: 2023030201 | J72: =SUMPRODUCT(($F$3:$F$1200=F72)*($E$3:$E$1200>E72))+1 -> 34
A73: 71 | B73: 2023030100311 | C73: 赵艳平 | D73: N | E73: 81 | F73: 修文县景阳街道襄阳社区 | G73: 20230302 | H73: 公共事务员 | I73: 2023030201 | J73: =SUMPRODUCT(($F$3:$F$1200=F73)*($E$3:$E$1200>E73))+1 -> 36
A74: 72 | B74: 2023030101024 | C74: 魏典 | D74: N | E74: 81 | F74: 修文县景阳街道襄阳社区 | G74: 20230302 | H74: 公共事务员 | I74: 2023030201 | J74: =SUMPRODUCT(($F$3:$F$1200=F74)*($E$3:$E$1200>E74))+1 -> 36
A75: 73 | B75: 2023030100830 | C75: 孙旗键 | D75: N | E75: 81 | F75: 修文县景阳街道襄阳社区 | G75: 20230302 | H75: 公共事务员 | I75: 2023030201 | J75: =SUMPRODUCT(($F$3:$F$1200=F75)*($E$3:$E$1200>E75))+1 -> 36
A76: 74 | B76: 2023030100222 | C76: 刘颜 | D76: N | E76: 81 | F76: 修文县景阳街道襄阳社区 | G76: 20230302 | H76: 公共事务员 | I76: 2023030201 | J76: =SUMPRODUCT(($F$3:$F$1200=F76)*($E$3:$E$1200>E76))+1 -> 36
A77: 75 | B77: 2023030100814 | C77: 周会云 | D77: N | E77: 80.5 | F77: 修文县景阳街道襄阳社区 | G77: 20230302 | H77: 公共事务员 | I77: 2023030201 | J77: =SUMPRODUCT(($F$3:$F$1200=F77)*($E$3:$E$1200>E77))+1 -> 40
A78: 76 | B78: 2023030101130 | C78: 杨鑫 | D78: N | E78: 80 | F78: 修文县景阳街道襄阳社区 | G78: 20230302 | H78: 公共事务员 | I78: 2023030201 | J78: =SUMPRODUCT(($F$3:$F$1200=F78)*($E$3:$E$1200>E78))+1 -> 41
A79: 77 | B79: 2023030100318 | C79: 许群粒 | D79: N | E79: 80 | F79: 修文县景阳街道襄阳社区 | G79: 20230302 | H79: 公共事务员 | I79: 2023030201 | J79: =SUMPRODUCT(($F$3:$F$1200=F79)*($E$3:$E$1200>E79))+1 -> 41
A80: 78 | B80: 2023030100503 | C80: 唐素波 | D80: N | E80: 79.5 | F80: 修文县景阳街道襄阳社区 | G80: 20230302 | H80: 公共事务员 | I80: 2023030201 | J80: =SUMPRODUCT(($F$3:$F$1200=F80)*($E$3:$E$1200>E80))+1 -> 43
A81: 79 | B81: 2023030100224 | C81: 张天云 | D81: N | E81: 79.5 | F81: 修文县景阳街道襄阳社区 | G81: 20230302 | H81: 公共事务员 | I81: 2023030201 | J81: =SUMPRODUCT(($F$3:$F$1200=F81)*($E$3:$E$1200>E81))+1 -> 43
A82: 80 | B82: 2023030100226 | C82: 赵明东 | D82: N | E82: 79.5 | F82: 修文县景阳街道襄阳社区 | G82: 20230302 | H82: 公共事务员 | I82: 2023030201 | J82: =SUMPRODUCT(($F$3:$F$1200=F82)*($E$3:$E$1200>E82))+1 -> 43
A83: 81 | B83: 2023030100207 | C83: 刘乙宏 | D83: N | E83: 79.5 | F83: 修文县景阳街道襄阳社区 | G83: 20230302 | H83: 公共事务员 | I83: 2023030201 | J83: =SUMPRODUCT(($F$3:$F$1200=F83)*($E$3:$E$1200>E83))+1 -> 43
A84: 82 | B84: 2023030101126 | C84: 潘正萍 | D84: N | E84: 79 | F84: 修文县景阳街道襄阳社区 | G84: 20230302 | H84: 公共事务员 | I84: 2023030201 | J84: =SUMPRODUCT(($F$3:$F$1200=F84)*($E$3:$E$1200>E84))+1 -> 47
A85: 83 | B85: 2023030100930 | C85: 姜超云 | D85: N | E85: 79 | F85: 修文县景阳街道襄阳社区 | G85: 20230302 | H85: 公共事务员 | I85: 2023030201 | J85: =SUMPRODUCT(($F$3:$F$1200=F85)*($E$3:$E$1200>E85))+1 -> 47
A86: 84 | B86: 2023030100719 | C86: 郭玉旭 | D86: N | E86: 78.5 | F86: 修文县景阳街道襄阳社区 | G86: 20230302 | H86: 公共事务员 | I86: 2023030201 | J86: =SUMPRODUCT(($F$3:$F$1200=F86)*($E$3:$E$1200>E86))+1 -> 49
A87: 85 | B87: 2023030100624 | C87: 刘曼丹 | D87: N | E87: 77.5 | F87: 修文县景阳街道襄阳社区 | G87: 20230302 | H87: 公共事务员 | I87: 2023030201 | J87: =SUMPRODUCT(($F$3:$F$1200=F87)*($E$3:$E$1200>E87))+1 -> 50
A88: 86 | B88: 2023030101002 | C88: 苏语笛 | D88: N | E88: 77.5 | F88: 修文县景阳街道襄阳社区 | G88: 20230302 | H88: 公共事务员 | I88: 2023030201 | J88: =SUMPRODUCT(($F$3:$F$1200=F88)*($E$3:$E$1200>E88))+1 -> 50
A89: 87 | B89: 2023030100518 | C89: 李恒 | D89: N | E89: 77 | F89: 修文县景阳街道襄阳社区 | G89: 20230302 | H89: 公共事务员 | I89: 2023030201 | J89: =SUMPRODUCT(($F$3:$F$1200=F89)*($E$3:$E$1200>E89))+1 -> 52
A90: 88 | B90: 2023030101018 | C90: 叶倩 | D90: N | E90: 76.5 | F90: 修文县景阳街道襄阳社区 | G90: 20230302 | H90: 公共事务员 | I90: 2023030201 | J90: =SUMPRODUCT(($F$3:$F$1200=F90)*($E$3:$E$1200>E90))+1 -> 53
A91: 89 | B91: 2023030100903 | C91: 徐万 | D91: N | E91: 76 | F91: 修文县景阳街道襄阳社区 | G91: 20230302 | H91: 公共事务员 | I91: 2023030201 | J91: =SUMPRODUCT(($F$3:$F$1200=F91)*($E$3:$E$1200>E91))+1 -> 54
A92: 90 | B92: 2023030101115 | C92: 李旭 | D92: N | E92: 75.5 | F92: 修文县景阳街道襄阳社区 | G92: 20230302 | H92: 公共事务员 | I92: 2023030201 | J92: =SUMPRODUCT(($F$3:$F$1200=F92)*($E$3:$E$1200>E92))+1 -> 55
A93: 91 | B93: 2023030100906 | C93: 谢泽会 | D93: N | E93: 75 | F93: 修文县景阳街道襄阳社区 | G93: 20230302 | H93: 公共事务员 | I93: 2023030201 | J93: =SUMPRODUCT(($F$3:$F$1200=F93)*($E$3:$E$1200>E93))+1 -> 56
A94: 92 | B94: 2023030100419 | C94: 杨杰 | D94: N | E94: 75 | F94: 修文县景阳街道襄阳社区 | G94: 20230302 | H94: 公共事务员 | I94: 2023030201 | J94: =SUMPRODUCT(($F$3:$F$1200=F94)*($E$3:$E$1200>E94))+1 -> 56
A95: 93 | B95: 2023030101026 | C95: 张章 | D95: N | E95: 74.5 | F95: 修文县景阳街道襄阳社区 | G95: 20230302 | H95: 公共事务员 | I95: 2023030201 | J95: =SUMPRODUCT(($F$3:$F$1200=F95)*($E$3:$E$1200>E95))+1 -> 58
A96: 94 | B96: 2023030100509 | C96: 万婷婷 | D96: N | E96: 74.5 | F96: 修文县景阳街道襄阳社区 | G96: 20230302 | H96: 公共事务员 | I96: 2023030201 | J96: =SUMPRODUCT(($F$3:$F$1200=F96)*($E$3:$E$1200>E96))+1 -> 58
A97: 95 | B97: 2023030100429 | C97: 吴维飞 | D97: N | E97: 74 | F97: 修文县景阳街道襄阳社区 | G97: 20230302 | H97: 公共事务员 | I97: 2023030201 | J97: =SUMPRODUCT(($F$3:$F$1200=F97)*($E$3:$E$1200>E97))+1 -> 60
A98: 96 | B98: 2023030100411 | C98: 徐春莲 | D98: N | E98: 73.5 | F98: 修文县景阳街道襄阳社区 | G98: 20230302 | H98: 公共事务员 | I98: 2023030201 | J98: =SUMPRODUCT(($F$3:$F$1200=F98)*($E$3:$E$1200>E98))+1 -> 61
A99: 97 | B99: 2023030100511 | C99: 王杰 | D99: N | E99: 73 | F99: 修文县景阳街道襄阳社区 | G99: 20230302 | H99: 公共事务员 | I99: 2023030201 | J99: =SUMPRODUCT(($F$3:$F$1200=F99)*($E$3:$E$1200>E99))+1 -> 62
A100: 98 | B100: 2023030101010 | C100: 欧乙未 | D100: N | E100: 72.5 | F100: 修文县景阳街道襄阳社区 | G100: 20230302 | H100: 公共事务员 | I100: 2023030201 | J100: =SUMPRODUCT(($F$3:$F$1200=F100)*($E$3:$E$1200>E100))+1 -> 63
A101: 99 | B101: 2023030100211 | C101: 朱恩荟 | D101: N | E101: 72.5 | F101: 修文县景阳街道襄阳社区 | G101: 20230302 | H101: 公共事务员 | I101: 2023030201 | J101: =SUMPRODUCT(($F$3:$F$1200=F101)*($E$3:$E$1200>E101))+1 -> 63
A102: 100 | B102: 2023030100913 | C102: 刘莉 | D102: N | E102: 72 | F102: 修文县景阳街道襄阳社区 | G102: 20230302 | H102: 公共事务员 | I102: 2023030201 | J102: =SUMPRODUCT(($F$3:$F$1200=F102)*($E$3:$E$1200>E102))+1 -> 65
A103: 101 | B103: 2023030101015 | C103: 肖阳 | D103: N | E103: 71.5 | F103: 修文县景阳街道襄阳社区 | G103: 20230302 | H103: 公共事务员 | I103: 2023030201 | J103: =SUMPRODUCT(($F$3:$F$1200=F103)*($E$3:$E$1200>E103))+1 -> 66
A104: 102 | B104: 2023030100111 | C104: 杨程 | D104: N | E104: 71.5 | F104: 修文县景阳街道襄阳社区 | G104: 20230302 | H104: 公共事务员 | I104: 2023030201 | J104: =SUMPRODUCT(($F$3:$F$1200=F104)*($E$3:$E$1200>E104))+1 -> 66
A105: 103 | B105: 2023030100404 | C105: 杜素 | D105: N | E105: 71.5 | F105: 修文县景阳街道襄阳社区 | G105: 20230302 | H105: 公共事务员 | I105: 2023030201 | J105: =SUMPRODUCT(($F$3:$F$1200=F105)*($E$3:$E$1200>E105))+1 -> 66
A106: 104 | B106: 2023030101109 | C106: 周连波 | D106: N | E106: 70.5 | F106: 修文县景阳街道襄阳社区 | G106: 20230302 | H106: 公共事务员 | I106: 2023030201 | J106: =SUMPRODUCT(($F$3:$F$1200=F106)*($E$3:$E$1200>E106))+1 -> 69
A107: 105 | B107: 2023030100725 | C107: 韦贵瑜 | D107: N | E107: 70 | F107: 修文县景阳街道襄阳社区 | G107: 20230302 | H107: 公共事务员 | I107: 2023030201 | J107: =SUMPRODUCT(($F$3:$F$1200=F107)*($E$3:$E$1200>E107))+1 -> 70
A108: 106 | B108: 2023030100707 | C108: 郭倩 | D108: N | E108: 69.5 | F108: 修文县景阳街道襄阳社区 | G108: 20230302 | H108: 公共事务员 | I108: 2023030201 | J108: =SUMPRODUCT(($F$3:$F$1200=F108)*($E$3:$E$1200>E108))+1 -> 71
A109: 107 | B109: 2023030101008 | C109: 龙佳 | D109: N | E109: 69.5 | F109: 修文县景阳街道襄阳社区 | G109: 20230302 | H109: 公共事务员 | I109: 2023030201 | J109: =SUMPRODUCT(($F$3:$F$1200=F109)*($E$3:$E$1200>E109))+1 -> 71
A110: 108 | B110: 2023030100816 | C110: 杨宏亚 | D110: N | E110: 69 | F110: 修文县景阳街道襄阳社区 | G110: 20230302 | H110: 公共事务员 | I110: 2023030201 | J110: =SUMPRODUCT(($F$3:$F$1200=F110)*($E$3:$E$1200>E110))+1 -> 73
A111: 109 | B111: 2023030100410 | C111: 付方 | D111: N | E111: 68.5 | F111: 修文县景阳街道襄阳社区 | G111: 20230302 | H111: 公共事务员 | I111: 2023030201 | J111: =SUMPRODUCT(($F$3:$F$1200=F111)*($E$3:$E$1200>E111))+1 -> 74
A112: 110 | B112: 2023030100402 | C112: 陈琴 | D112: N | E112: 68.5 | F112: 修文县景阳街道襄阳社区 | G112: 20230302 | H112: 公共事务员 | I112: 2023030201 | J112: =SUMPRODUCT(($F$3:$F$1200=F112)*($E$3:$E$1200>E112))+1 -> 74
A113: 111 | B113: 2023030100705 | C113: 刘守佳 | D113: N | E113: 68 | F113: 修文县景阳街道襄阳社区 | G113: 20230302 | H113: 公共事务员 | I113: 2023030201 | J113: =SUMPRODUCT(($F$3:$F$1200=F113)*($E$3:$E$1200>E113))+1 -> 76
A114: 112 | B114: 2023030100303 | C114: 聂琼 | D114: N | E114: 68 | F114: 修文县景阳街道襄阳社区 | G114: 20230302 | H114: 公共事务员 | I114: 2023030201 | J114: =SUMPRODUCT(($F$3:$F$1200=F114)*($E$3:$E$1200>E114))+1 -> 76
A115: 113 | B115: 2023030101118 | C115: 罗娟 | D115: N | E115: 67.5 | F115: 修文县景阳街道襄阳社区 | G115: 20230302 | H115: 公共事务员 | I115: 2023030201 | J115: =SUMPRODUCT(($F$3:$F$1200=F115)*($E$3:$E$1200>E115))+1 -> 78
A116: 114 | B116: 2023030100829 | C116: 蒲俊成 | D116: N | E116: 67.5 | F116: 修文县景阳街道襄阳社区 | G116: 20230302 | H116: 公共事务员 | I116: 2023030201 | J116: =SUMPRODUCT(($F$3:$F$1200=F116)*($E$3:$E$1200>E116))+1 -> 78
A117: 115 | B117: 2023030100215 | C117: 肖维刚 | D117: N | E117: 67 | F117: 修文县景阳街道襄阳社区 | G117: 20230302 | H117: 公共事务员 | I117: 2023030201 | J117: =SUMPRODUCT(($F$3:$F$1200=F117)*($E$3:$E$1200>E117))+1 -> 80
A118: 116 | B118: 2023030100216 | C118: 蒋泽南 | D118: N | E118: 67 | F118: 修文县景阳街道襄阳社区 | G118: 20230302 | H118: 公共事务员 | I118: 2023030201 | J118: =SUMPRODUCT(($F$3:$F$1200=F118)*($E$3:$E$1200>E118))+1 -> 80
A119: 117 | B119: 2023030101104 | C119: 洪贵菊 | D119: N | E119: 67 | F119: 修文县景阳街道襄阳社区 | G119: 20230302 | H119: 公共事务员 | I119: 2023030201 | J119: =SUMPRODUCT(($F$3:$F$1200=F119)*($E$3:$E$1200>E119))+1 -> 80
A120: 118 | B120: 2023030100702 | C120: 李康 | D120: N | E120: 66.5 | F120: 修文县景阳街道襄阳社区 | G120: 20230302 | H120: 公共事务员 | I120: 2023030201 | J120: =SUMPRODUCT(($F$3:$F$1200=F120)*($E$3:$E$1200>E120))+1 -> 83
A121: 119 | B121: 2023030101206 | C121: 刘小芳 | D121: N | E121: 66 | F121: 修文县景阳街道襄阳社区 | G121: 20230302 | H121: 公共事务员 | I121: 2023030201 | J121: =SUMPRODUCT(($F$3:$F$1200=F121)*($E$3:$E$1200>E121))+1 -> 84
A122: 120 | B122: 2023030100213 | C122: 刘贤智 | D122: N | E122: 66 | F122: 修文县景阳街道襄阳社区 | G122: 20230302 | H122: 公共事务员 | I122: 2023030201 | J122: =SUMPRODUCT(($F$3:$F$1200=F122)*($E$3:$E$1200>E122))+1 -> 84
A123: 121 | B123: 2023030100307 | C123: 周海波 | D123: N | E123: 65.5 | F123: 修文县景阳街道襄阳社区 | G123: 20230302 | H123: 公共事务员 | I123: 2023030201 | J123: =SUMPRODUCT(($F$3:$F$1200=F123)*($E$3:$E$1200>E123))+1 -> 86
A124: 122 | B124: 2023030100519 | C124: 卢家山 | D124: N | E124: 65.5 | F124: 修文县景阳街道襄阳社区 | G124: 20230302 | H124: 公共事务员 | I124: 2023030201 | J124: =SUMPRODUCT(($F$3:$F$1200=F124)*($E$3:$E$1200>E124))+1 -> 86
A125: 123 | B125: 2023030100912 | C125: 钟晓鑫 | D125: N | E125: 65 | F125: 修文县景阳街道襄阳社区 | G125: 20230302 | H125: 公共事务员 | I125: 2023030201 | J125: =SUMPRODUCT(($F$3:$F$1200=F125)*($E$3:$E$1200>E125))+1 -> 88
A126: 124 | B126: 2023030100712 | C126: 向凯 | D126: N | E126: 65 | F126: 修文县景阳街道襄阳社区 | G126: 20230302 | H126: 公共事务员 | I126: 2023030201 | J126: =SUMPRODUCT(($F$3:$F$1200=F126)*($E$3:$E$1200>E126))+1 -> 88
A127: 125 | B127: 2023030100426 | C127: 赵龙飞 | D127: N | E127: 64.5 | F127: 修文县景阳街道襄阳社区 | G127: 20230302 | H127: 公共事务员 | I127: 2023030201 | J127: =SUMPRODUCT(($F$3:$F$1200=F127)*($E$3:$E$1200>E127))+1 -> 90
A128: 126 | B128: 2023030100918 | C128: 周永永 | D128: N | E128: 64 | F128: 修文县景阳街道襄阳社区 | G128: 20230302 | H128: 公共事务员 | I128: 2023030201 | J128: =SUMPRODUCT(($F$3:$F$1200=F128)*($E$3:$E$1200>E128))+1 -> 91
A129: 127 | B129: 2023030100218 | C129: 冯治兰 | D129: N | E129: 63 | F129: 修文县景阳街道襄阳社区 | G129: 20230302 | H129: 公共事务员 | I129: 2023030201 | J129: =SUMPRODUCT(($F$3:$F$1200=F129)*($E$3:$E$1200>E129))+1 -> 92
A130: 128 | B130: 2023030100420 | C130: 谢谦 | D130: N | E130: 62.5 | F130: 修文县景阳街道襄阳社区 | G130: 20230302 | H130: 公共事务员 | I130: 2023030201 | J130: =SUMPRODUCT(($F$3:$F$1200=F130)*($E$3:$E$1200>E130))+1 -> 93
A131: 129 | B131: 2023030100405 | C131: 梁琴 | D131: N | E131: 61.5 | F131: 修文县景阳街道襄阳社区 | G131: 20230302 | H131: 公共事务员 | I131: 2023030201 | J131: =SUMPRODUCT(($F$3:$F$1200=F131)*($E$3:$E$1200>E131))+1 -> 94
A132: 130 | B132: 2023030100306 | C132: 杨艳 | D132: N | E132: 60.5 | F132: 修文县景阳街道襄阳社区 | G132: 20230302 | H132: 公共事务员 | I132: 2023030201 | J132: =SUMPRODUCT(($F$3:$F$1200=F132)*($E$3:$E$1200>E132))+1 -> 95
A133: 131 | B133: 2023030100423 | C133: 罗洪 | D133: N | E133: 60 | F133: 修文县景阳街道襄阳社区 | G133: 20230302 | H133: 公共事务员 | I133: 2023030201 | J133: =SUMPRODUCT(($F$3:$F$1200=F133)*($E$3:$E$1200>E133))+1 -> 96
A134: 132 | B134: 2023030101117 | C134: 刘明星 | D134: N | E134: 59.5 | F134: 修文县景阳街道襄阳社区 | G134: 20230302 | H134: 公共事务员 | I134: 2023030201 | J134: =SUMPRODUCT(($F$3:$F$1200=F134)*($E$3:$E$1200>E134))+1 -> 97
A135: 133 | B135: 2023030100227 | C135: 杨秀芝 | D135: N | E135: 58 | F135: 修文县景阳街道襄阳社区 | G135: 20230302 | H135: 公共事务员 | I135: 2023030201 | J135: =SUMPRODUCT(($F$3:$F$1200=F135)*($E$3:$E$1200>E135))+1 -> 98
A136: 134 | B136: 2023030101123 | C136: 李贤萍 | D136: N | E136: 57.5 | F136: 修文县景阳街道襄阳社区 | G136: 20230302 | H136: 公共事务员 | I136: 2023030201 | J136: =SUMPRODUCT(($F$3:$F$1200=F136)*($E$3:$E$1200>E136))+1 -> 99
A137: 135 | B137: 2023030100617 | C137: 陈子墨 | D137: N | E137: 55 | F137: 修文县景阳街道襄阳社区 | G137: 20230302 | H137: 公共事务员 | I137: 2023030201 | J137: =SUMPRODUCT(($F$3:$F$1200=F137)*($E$3:$E$1200>E137))+1 -> 100
A138: 136 | B138: 2023030100920 | C138: 何文艺 | D138: N | E138: 51.5 | F138: 修文县景阳街道襄阳社区 | G138: 20230302 | H138: 公共事务员 | I138: 2023030201 | J138: =SUMPRODUCT(($F$3:$F$1200=F138)*($E$3:$E$1200>E138))+1 -> 101
A139: 137 | B139: 2023030100824 | C139: 陈顺 | D139: N | E139: 50.5 | F139: 修文县景阳街道襄阳社区 | G139: 20230302 | H139: 公共事务员 | I139: 2023030201 | J139: =SUMPRODUCT(($F$3:$F$1200=F139)*($E$3:$E$1200>E139))+1 -> 102
A140: 138 | B140: 2023030100714 | C140: 汪映廷 | D140: Y | E140: 0 | F140: 修文县景阳街道襄阳社区 | G140: 20230302 | H140: 公共事务员 | I140: 2023030201 | J140: =SUMPRODUCT(($F$3:$F$1200=F140)*($E$3:$E$1200>E140))+1 -> 103
A141: 139 | B141: 2023030100727 | C141: 曾以超 | D141: Y | E141: 0 | F141: 修文县景阳街道襄阳社区 | G141: 20230302 | H141: 公共事务员 | I141: 2023030201 | J141: =SUMPRODUCT(($F$3:$F$1200=F141)*($E$3:$E$1200>E141))+1 -> 103
A142: 140 | B142: 2023030100728 | C142: 卢曾艳 | D142: Y | E142: 0 | F142: 修文县景阳街道襄阳社区 | G142: 20230302 | H142: 公共事务员 | I142: 2023030201 | J142: =SUMPRODUCT(($F$3:$F$1200=F142)*($E$3:$E$1200>E142))+1 -> 103
A143: 141 | B143: 2023030100904 | C143: 杨修梅 | D143: Y | E143: 0 | F143: 修文县景阳街道襄阳社区 | G143: 20230302 | H143: 公共事务员 | I143: 2023030201 | J143: =SUMPRODUCT(($F$3:$F$1200=F143)*($E$3:$E$1200>E143))+1 -> 103
A144: 142 | B144: 2023030101116 | C144: 刘莉娟 | D144: Y | E144: 0 | F144: 修文县景阳街道襄阳社区 | G144: 20230302 | H144: 公共事务员 | I144: 2023030201 | J144: =SUMPRODUCT(($F$3:$F$1200=F144)*($E$3:$E$1200>E144))+1 -> 103
A145: 143 | B145: 2023030101103 | C145: 杜培章 | D145: Y | E145: 0 | F145: 修文县景阳街道襄阳社区 | G145: 20230302 | H145: 公共事务员 | I145: 2023030201 | J145: =SUMPRODUCT(($F$3:$F$1200=F145)*($E$3:$E$1200>E145))+1 -> 103
A146: 144 | B146: 2023030100228 | C146: 黎静 | D146: Y | E146: 0 | F146: 修文县景阳街道襄阳社区 | G146: 20230302 | H146: 公共事务员 | I146: 2023030201 | J146: =SUMPRODUCT(($F$3:$F$1200=F146)*($E$3:$E$1200>E146))+1 -> 103
A147: 145 | B147: 2023030100225 | C147: 李燚鑫 | D147: Y | E147: 0 | F147: 修文县景阳街道襄阳社区 | G147: 20230302 | H147: 公共事务员 | I147: 2023030201 | J147: =SUMPRODUCT(($F$3:$F$1200=F147)*($E$3:$E$1200>E147))+1 -> 103
A148: 146 | B148: 2023030101110 | C148: 王露露 | D148: Y | E148: 0 | F148: 修文县景阳街道襄阳社区 | G148: 20230302 | H148: 公共事务员 | I148: 2023030201 | J148: =SUMPRODUCT(($F$3:$F$1200=F148)*($E$3:$E$1200>E148))+1 -> 103
A149: 147 | B149: 2023030100622 | C149: 钟倩 | D149: Y | E149: 0 | F149: 修文县景阳街道襄阳社区 | G149: 20230302 | H149: 公共事务员 | I149: 2023030201 | J149: =SUMPRODUCT(($F$3:$F$1200=F149)*($E$3:$E$1200>E149))+1 -> 103
A150: 148 | B150: 2023030100316 | C150: 卢树艳 | D150: Y | E150: 0 | F150: 修文县景阳街道襄阳社区 | G150: 20230302 | H150: 公共事务员 | I150: 2023030201 | J150: =SUMPRODUCT(($F$3:$F$1200=F150)*($E$3:$E$1200>E150))+1 -> 103
A151: 149 | B151: 2023030100317 | C151: 徐靖松 | D151: Y | E151: 0 | F151: 修文县景阳街道襄阳社区 | G151: 20230302 | H151: 公共事务员 | I151: 2023030201 | J151: =SUMPRODUCT(($F$3:$F$1200=F151)*($E$3:$E$1200>E151))+1 -> 103
A152: 150 | B152: 2023030100507 | C152: 张娟 | D152: Y | E152: 0 | F152: 修文县景阳街道襄阳社区 | G152: 20230302 | H152: 公共事务员 | I152: 2023030201 | J152: =SUMPRODUCT(($F$3:$F$1200=F152)*($E$3:$E$1200>E152))+1 -> 103
A153: 151 | B153: 2023030100320 | C153: 陈颖 | D153: Y | E153: 0 | F153: 修文县景阳街道襄阳社区 | G153: 20230302 | H153: 公共事务员 | I153: 2023030201 | J153: =SUMPRODUCT(($F$3:$F$1200=F153)*($E$3:$E$1200>E153))+1 -> 103
A154: 152 | B154: 2023030100308 | C154: 何远宏 | D154: Y | E154: 0 | F154: 修文县景阳街道襄阳社区 | G154: 20230302 | H154: 公共事务员 | I154: 2023030201 | J154: =SUMPRODUCT(($F$3:$F$1200=F154)*($E$3:$E$1200>E154))+1 -> 103
A155: 153 | B155: 2023030100312 | C155: 周东 | D155: Y | E155: 0 | F155: 修文县景阳街道襄阳社区 | G155: 20230302 | H155: 公共事务员 | I155: 2023030201 | J155: =SUMPRODUCT(($F$3:$F$1200=F155)*($E$3:$E$1200>E155))+1 -> 103
A156: 154 | B156: 2023030100325 | C156: 余攀 | D156: Y | E156: 0 | F156: 修文县景阳街道襄阳社区 | G156: 20230302 | H156: 公共事务员 | I156: 2023030201 | J156: =SUMPRODUCT(($F$3:$F$1200=F156)*($E$3:$E$1200>E156))+1 -> 103
A157: 155 | B157: 2023030100801 | C157: 万娇娇 | D157: Y | E157: 0 | F157: 修文县景阳街道襄阳社区 | G157: 20230302 | H157: 公共事务员 | I157: 2023030201 | J157: =SUMPRODUCT(($F$3:$F$1200=F157)*($E$3:$E$1200>E157))+1 -> 103
A158: 156 | B158: 2023030100804 | C158: 吴康 | D158: Y | E158: 0 | F158: 修文县景阳街道襄阳社区 | G158: 20230302 | H158: 公共事务员 | I158: 2023030201 | J158: =SUMPRODUCT(($F$3:$F$1200=F158)*($E$3:$E$1200>E158))+1 -> 103
A159: 157 | B159: 2023030100822 | C159: 查梦雅 | D159: Y | E159: 0 | F159: 修文县景阳街道襄阳社区 | G159: 20230302 | H159: 公共事务员 | I159: 2023030201 | J159: =SUMPRODUCT(($F$3:$F$1200=F159)*($E$3:$E$1200>E159))+1 -> 103
A160: 158 | B160: 2023030101014 | C160: 吴佳芳 | D160: Y | E160: 0 | F160: 修文县景阳街道襄阳社区 | G160: 20230302 | H160: 公共事务员 | I160: 2023030201 | J160: =SUMPRODUCT(($F$3:$F$1200=F160)*($E$3:$E$1200>E160))+1 -> 103
A161: 159 | B161: 2023030100401 | C161: 刘端 | D161: Y | E161: 0 | F161: 修文县景阳街道襄阳社区 | G161: 20230302 | H161: 公共事务员 | I161: 2023030201 | J161: =SUMPRODUCT(($F$3:$F$1200=F161)*($E$3:$E$1200>E161))+1 -> 103
A162: 160 | B162: 2023030100422 | C162: 陆祖波 | D162: Y | E162: 0 | F162: 修文县景阳街道襄阳社区 | G162: 20230302 | H162: 公共事务员 | I162: 2023030201 | J162: =SUMPRODUCT(($F$3:$F$1200=F162)*($E$3:$E$1200>E162))+1 -> 103
A163: 161 | B163: 2023030100403 | C163: 陈念 | D163: Y | E163: 0 | F163: 修文县景阳街道襄阳社区 | G163: 20230302 | H163: 公共事务员 | I163: 2023030201 | J163: =SUMPRODUCT(($F$3:$F$1200=F163)*($E$3:$E$1200>E163))+1 -> 103
A164: 162 | B164: 2023030101202 | C164: 何佳归 | D164: Y | E164: 0 | F164: 修文县景阳街道襄阳社区 | G164: 20230302 | H164: 公共事务员 | I164: 2023030201 | J164: =SUMPRODUCT(($F$3:$F$1200=F164)*($E$3:$E$1200>E164))+1 -> 103
A165: 163 | B165: 2023030100607 | C165: 周朝军 | D165: Y | E165: 0 | F165: 修文县景阳街道襄阳社区 | G165: 20230302 | H165: 公共事务员 | I165: 2023030201 | J165: =SUMPRODUCT(($F$3:$F$1200=F165)*($E$3:$E$1200>E165))+1 -> 103
A166: 164 | B166: 2023030100502 | C166: 王路瑶 | D166: Y | E166: 0 | F166: 修文县景阳街道襄阳社区 | G166: 20230302 | H166: 公共事务员 | I166: 2023030201 | J166: =SUMPRODUCT(($F$3:$F$1200=F166)*($E$3:$E$1200>E166))+1 -> 103
A167: 165 | B167: 2023030100825 | C167: 何星星 | D167: Y | E167: 0 | F167: 修文县景阳街道襄阳社区 | G167: 20230302 | H167: 公共事务员 | I167: 2023030201 | J167: =SUMPRODUCT(($F$3:$F$1200=F167)*($E$3:$E$1200>E167))+1 -> 103
A168: 166 | B168: 2023030100510 | C168: 张丽 | D168: Y | E168: 0 | F168: 修文县景阳街道襄阳社区 | G168: 20230302 | H168: 公共事务员 | I168: 2023030201 | J168: =SUMPRODUCT(($F$3:$F$1200=F168)*($E$3:$E$1200>E168))+1 -> 103
A169: 167 | B169: 2023030100513 | C169: 陈刚 | D169: Y | E169: 0 | F169: 修文县景阳街道襄阳社区 | G169: 20230302 | H169: 公共事务员 | I169: 2023030201 | J169: =SUMPRODUCT(($F$3:$F$1200=F169)*($E$3:$E$1200>E169))+1 -> 103
A170: 168 | B170: 2023030100522 | C170: 巫钦 | D170: Y | E170: 0 | F170: 修文县景阳街道襄阳社区 | G170: 20230302 | H170: 公共事务员 | I170: 2023030201 | J170: =SUMPRODUCT(($F$3:$F$1200=F170)*($E$3:$E$1200>E170))+1 -> 103
A171: 169 | B171: 2023030100523 | C171: 向绪芳 | D171: Y | E171: 0 | F171: 修文县景阳街道襄阳社区 | G171: 20230302 | H171: 公共事务员 | I171: 2023030201 | J171: =SUMPRODUCT(($F$3:$F$1200=F171)*($E$3:$E$1200>E171))+1 -> 103
A172: 170 | B172: 2023030100901 | C172: 锁红美 | D172: Y | E172: 0 | F172: 修文县景阳街道襄阳社区 | G172: 20230302 | H172: 公共事务员 | I172: 2023030201 | J172: =SUMPRODUCT(($F$3:$F$1200=F172)*($E$3:$E$1200>E172))+1 -> 103
A173: 171 | B173: 2023030100722 | C173: 吴欢 | D173: Y | E173: 0 | F173: 修文县景阳街道襄阳社区 | G173: 20230302 | H173: 公共事务员 | I173: 2023030201 | J173: =SUMPRODUCT(($F$3:$F$1200=F173)*($E$3:$E$1200>E173))+1 -> 103
A174: 172 | B174: 2023030100729 | C174: 杜德林 | D174: Y | E174: 0 | F174: 修文县景阳街道襄阳社区 | G174: 20230302 | H174: 公共事务员 | I174: 2023030201 | J174: =SUMPRODUCT(($F$3:$F$1200=F174)*($E$3:$E$1200>E174))+1 -> 103
A175: 173 | B175: 2023030100710 | C175: 黎志亮 | D175: Y | E175: 0 | F175: 修文县景阳街道襄阳社区 | G175: 20230302 | H175: 公共事务员 | I175: 2023030201 | J175: =SUMPRODUCT(($F$3:$F$1200=F175)*($E$3:$E$1200>E175))+1 -> 103
A176: 174 | B176: 2023030101121 | C176: 许俊伟 | D176: Y | E176: 0 | F176: 修文县景阳街道襄阳社区 | G176: 20230302 | H176: 公共事务员 | I176: 2023030201 | J176: =SUMPRODUCT(($F$3:$F$1200=F176)*($E$3:$E$1200>E176))+1 -> 103
A177: 175 | B177: 2023030101124 | C177: 刘素 | D177: Y | E177: 0 | F177: 修文县景阳街道襄阳社区 | G177: 20230302 | H177: 公共事务员 | I177: 2023030201 | J177: =SUMPRODUCT(($F$3:$F$1200=F177)*($E$3:$E$1200>E177))+1 -> 103
A178: 176 | B178: 2023030100612 | C178: 邓磊 | D178: Y | E178: 0 | F178: 修文县景阳街道襄阳社区 | G178: 20230302 | H178: 公共事务员 | I178: 2023030201 | J178: =SUMPRODUCT(($F$3:$F$1200=F178)*($E$3:$E$1200>E178))+1 -> 103
A179: 177 | B179: 2023030100210 | C179: 田单琴 | D179: Y | E179: 0 | F179: 修文县景阳街道襄阳社区 | G179: 20230302 | H179: 公共事务员 | I179: 2023030201 | J179: =SUMPRODUCT(($F$3:$F$1200=F179)*($E$3:$E$1200>E179))+1 -> 103
A180: 178 | B180: 2023030100230 | C180: 彭宗金 | D180: Y | E180: 0 | F180: 修文县景阳街道襄阳社区 | G180: 20230302 | H180: 公共事务员 | I180: 2023030201 | J180: =SUMPRODUCT(($F$3:$F$1200=F180)*($E$3:$E$1200>E180))+1 -> 103
A181: 179 | B181: 2023030100416 | C181: 刘玉琴 | D181: Y | E181: 0 | F181: 修文县景阳街道襄阳社区 | G181: 20230302 | H181: 公共事务员 | I181: 2023030201 | J181: =SUMPRODUCT(($F$3:$F$1200=F181)*($E$3:$E$1200>E181))+1 -> 103
A182: 180 | B182: 2023030100408 | C182: 田丹丹 | D182: Y | E182: 0 | F182: 修文县景阳街道襄阳社区 | G182: 20230302 | H182: 公共事务员 | I182: 2023030201 | J182: =SUMPRODUCT(($F$3:$F$1200=F182)*($E$3:$E$1200>E182))+1 -> 103
A183: 181 | B183: 2023030101012 | C183: 汤华丽 | D183: Y | E183: 0 | F183: 修文县景阳街道襄阳社区 | G183: 20230302 | H183: 公共事务员 | I183: 2023030201 | J183: =SUMPRODUCT(($F$3:$F$1200=F183)*($E$3:$E$1200>E183))+1 -> 103
A184: 182 | B184: 2023030101021 | C184: 刘贵豫 | D184: Y | E184: 0 | F184: 修文县景阳街道襄阳社区 | G184: 20230302 | H184: 公共事务员 | I184: 2023030201 | J184: =SUMPRODUCT(($F$3:$F$1200=F184)*($E$3:$E$1200>E184))+1 -> 103
A185: 183 | B185: 2023030101022 | C185: 刘云 | D185: Y | E185: 0 | F185: 修文县景阳街道襄阳社区 | G185: 20230302 | H185: 公共事务员 | I185: 2023030201 | J185: =SUMPRODUCT(($F$3:$F$1200=F185)*($E$3:$E$1200>E185))+1 -> 103
A186: 184 | B186: 2023030100305 | C186: 杨雪 | D186: Y | E186: 0 | F186: 修文县景阳街道襄阳社区 | G186: 20230302 | H186: 公共事务员 | I186: 2023030201 | J186: =SUMPRODUCT(($F$3:$F$1200=F186)*($E$3:$E$1200>E186))+1 -> 103
A187: 185 | B187: 2023030100323 | C187: 刘冰亮 | D187: Y | E187: 0 | F187: 修文县景阳街道襄阳社区 | G187: 20230302 | H187: 公共事务员 | I187: 2023030201 | J187: =SUMPRODUCT(($F$3:$F$1200=F187)*($E$3:$E$1200>E187))+1 -> 103
A188: 186 | B188: 2023030100327 | C188: 王巧 | D188: Y | E188: 0 | F188: 修文县景阳街道襄阳社区 | G188: 20230302 | H188: 公共事务员 | I188: 2023030201 | J188: =SUMPRODUCT(($F$3:$F$1200=F188)*($E$3:$E$1200>E188))+1 -> 103
A189: 187 | B189: 2023030100807 | C189: 杨承萱 | D189: Y | E189: 0 | F189: 修文县景阳街道襄阳社区 | G189: 20230302 | H189: 公共事务员 | I189: 2023030201 | J189: =SUMPRODUCT(($F$3:$F$1200=F189)*($E$3:$E$1200>E189))+1 -> 103
A190: 188 | B190: 2023030101112 | C190: 陈宏波 | D190: Y | E190: 0 | F190: 修文县景阳街道襄阳社区 | G190: 20230302 | H190: 公共事务员 | I190: 2023030201 | J190: =SUMPRODUCT(($F$3:$F$1200=F190)*($E$3:$E$1200>E190))+1 -> 103
A191: 189 | B191: 2023030101119 | C191: 罗倩 | D191: Y | E191: 0 | F191: 修文县景阳街道襄阳社区 | G191: 20230302 | H191: 公共事务员 | I191: 2023030201 | J191: =SUMPRODUCT(($F$3:$F$1200=F191)*($E$3:$E$1200>E191))+1 -> 103
A192: 190 | B192: 2023030101208 | C192: 夏雯 | D192: Y | E192: 0 | F192: 修文县景阳街道襄阳社区 | G192: 20230302 | H192: 公共事务员 | I192: 2023030201 | J192: =SUMPRODUCT(($F$3:$F$1200=F192)*($E$3:$E$1200>E192))+1 -> 103
A193: 191 | B193: 2023030101305 | C193: 管鹏 | D193: Y | E193: 0 | F193: 修文县景阳街道襄阳社区 | G193: 20230302 | H193: 公共事务员 | I193: 2023030201 | J193: =SUMPRODUCT(($F$3:$F$1200=F193)*($E$3:$E$1200>E193))+1 -> 103
A194: 192 | B194: 2023030100304 | C194: 杨萧 | D194: Y | E194: 0 | F194: 修文县景阳街道襄阳社区 | G194: 20230302 | H194: 公共事务员 | I194: 2023030201 | J194: =SUMPRODUCT(($F$3:$F$1200=F194)*($E$3:$E$1200>E194))+1 -> 103
A195: 193 | B195: 2023030100506 | C195: 周刚 | D195: Y | E195: 0 | F195: 修文县景阳街道襄阳社区 | G195: 20230302 | H195: 公共事务员 | I195: 2023030201 | J195: =SUMPRODUCT(($F$3:$F$1200=F195)*($E$3:$E$1200>E195))+1 -> 103
A196: 194 | B196: 2023030100301 | C196: 程朝龙 | D196: Y | E196: 0 | F196: 修文县景阳街道襄阳社区 | G196: 20230302 | H196: 公共事务员 | I196: 2023030201 | J196: =SUMPRODUCT(($F$3:$F$1200=F196)*($E$3:$E$1200>E196))+1 -> 103
A197: 195 | B197: 2023030100803 | C197: 罗莹 | D197: Y | E197: 0 | F197: 修文县景阳街道襄阳社区 | G197: 20230302 | H197: 公共事务员 | I197: 2023030201 | J197: =SUMPRODUCT(($F$3:$F$1200=F197)*($E$3:$E$1200>E197))+1 -> 103
A198: 196 | B198: 2023030100818 | C198: 罗艳 | D198: Y | E198: 0 | F198: 修文县景阳街道襄阳社区 | G198: 20230302 | H198: 公共事务员 | I198: 2023030201 | J198: =SUMPRODUCT(($F$3:$F$1200=F198)*($E$3:$E$1200>E198))+1 -> 103
A199: 197 | B199: 2023030100717 | C199: 邓清予 | D199: Y | E199: 0 | F199: 修文县景阳街道襄阳社区 | G199: 20230302 | H199: 公共事务员 | I199: 2023030201 | J199: =SUMPRODUCT(($F$3:$F$1200=F199)*($E$3:$E$1200>E199))+1 -> 103
A200: 198 | B200: 2023030100724 | C200: 李艳 | D200: Y | E200: 0 | F200: 修文县景阳街道襄阳社区 | G200: 20230302 | H200: 公共事务员 | I200: 2023030201 | J200: =SUMPRODUCT(($F$3:$F$1200=F200)*($E$3:$E$1200>E200))+1 -> 103
... 1000 more rows
